Department Family,Entity,Payment Date,Expense Type,Expense Area,Supplier,System Transaction Number, Amount 
Ministry of Justice,NOMS,01/12/2010,Contracted-out Electronic Monitoring,National Operations Group,G4S CARE & JUSTICE SERVICES LTD,3793964,"5,041,665.36"
Ministry of Justice,NOMS,01/12/2010,Contracted-out Electronic Monitoring,National Operations Group,SERCO LTD,3790418,"3,879,160.06"
Ministry of Justice,NOMS,01/12/2010,Contracted-out Probation Trusts,Leicestershire Probation Trust,LEICESTERSHIRE&RUTLAND PROBATION TRUST,3786589,"1,254,875.00"
Ministry of Justice,NOMS,01/12/2010,Contracted-out Probation Trusts,Derbyshire Probation Trust,DERBYSHIRE PROBATION TRUST,3798792,"1,063,450.00"
Ministry of Justice,NOMS,01/12/2010,Contract IT Maintenance,MOJ Shared Services NOMS Delivery,HP ENTERPRISE SERVICES UK LTD,3799468,"907,345.84"
Ministry of Justice,NOMS,01/12/2010,Contract IT Maintenance,MOJ Project & ATOS,HP ENTERPRISE SERVICES UK LTD,3799468,"580,413.07"
Ministry of Justice,NOMS,01/12/2010,Rates and Ground Rents,Estates Capacity,DURHAM CITY COUNCIL,3472465,"45,559.36"
Ministry of Justice,NOMS,01/12/2010,Contracted-out Building Maintenance,Estates Capacity,HOME OFFICE - AFU CASH MANAGEMENT,3799230,"454,311.75"
Ministry of Justice,NOMS,01/12/2010,WIP - Acquisitions,Estates Capacity,KIER REGIONAL LTD,3771038,"305,500.00"
Ministry of Justice,NOMS,01/12/2010,Rates and Ground Rents,Estates Capacity,DURHAM COUNTY COUNCIL,3472467,"28,152.00"
Ministry of Justice,NOMS,01/12/2010,Training and Further Education Courses,Learning and Development Group,NEWCASTLE COLLEGE,3783580,"254,468.11"
Ministry of Justice,NOMS,01/12/2010,Rates and Ground Rents,Estates Capacity,DAVENTRY DISTRICT COUNCIL,3472421,"31,937.14"
Ministry of Justice,NOMS,01/12/2010,Resource Grants / Grant-in-Aid,ROM - Yorkshire & Humberside,WOMENCENTRE LTD,3797927,"158,296.54"
Ministry of Justice,NOMS,01/12/2010,WIP - Acquisitions,Estates Capacity,CARILLION CONSTRUCTION LTD,3798224,"123,063.63"
Ministry of Justice,NOMS,01/12/2010,Contracted-out Building Maintenance,Estates Capacity,HOME OFFICE - AFU CASH MANAGEMENT,3799228,"122,500.00"
Ministry of Justice,NOMS,01/12/2010,Contracted-out Resettlement Services,NOMS CFO,A4E CONSULTING LTD,3797411,"115,896.32"
Ministry of Justice,NOMS,01/12/2010,Contracted-out Building Maintenance,Estates Capacity,HOME OFFICE - AFU CASH MANAGEMENT,3799229,"114,066.25"
Ministry of Justice,NOMS,01/12/2010,WIP - Acquisitions,Estates Capacity,WATES CONSTRUCTION LTD,3797773,"103,944.03"
Ministry of Justice,NOMS,01/12/2010,Contracted-out Resettlement Services,NOMS CFO,LEICESTERSHIRE&RUTLAND PROBATION TRUST,3798437,"87,697.20"
Ministry of Justice,NOMS,01/12/2010,WIP - Professional Fees,Estates Capacity,JACOBS ENGINEERING UK,3797473,"80,946.36"
Ministry of Justice,NOMS,01/12/2010,Contracted-out Resettlement Services,NOMS CFO,SOVA,3795713,"75,169.41"
Ministry of Justice,NOMS,01/12/2010,Contracted-out Resettlement Services,NOMS CFO,SOVA,3795714,"75,169.41"
Ministry of Justice,NOMS,01/12/2010,Secondments,NOMIS Programme,STAFFORDSHIRE AND WEST MIDLANDS PROBATION TRUST,3799480,"67,519.05"
Ministry of Justice,NOMS,01/12/2010,Contracted-out Resettlement Services,NOMS CFO,SOVA,3795712,"64,101.54"
Ministry of Justice,NOMS,01/12/2010,Contracted-out Resettlement Services,NOMS CFO,SOVA,3795711,"64,101.54"
Ministry of Justice,NOMS,01/12/2010,Contracted-out Catering Services,MOJ Shared Services NOMS Delivery,ESS SUPPORT SERVICES WORLDWIDE,3799550,"63,225.17"
Ministry of Justice,NOMS,01/12/2010,Legal Representation,Chief Operating Officers Office,TREASURY SOLICITORS,3799539,"62,289.31"
Ministry of Justice,NOMS,01/12/2010,Contract IT Maintenance,Public Protection and Mental Health Group,HOME OFFICE - AFU CASH MANAGEMENT,3797787,"49,655.88"
Ministry of Justice,NOMS,01/12/2010,Contract IT Maintenance,Learning and Development Group,HP ENTERPRISE SERVICES UK LTD,3799468,"43,420.99"
Ministry of Justice,NOMS,01/12/2010,Contracted-out Probation Trusts,Wellingborough,NORTHAMPTONSHIRE PROBATION TRUST,3798396,"39,652.25"
Ministry of Justice,NOMS,01/12/2010,Legal Representation,Chief Operating Officers Office,TREASURY SOLICITORS,3799535,"36,930.06"
Ministry of Justice,NOMS,01/12/2010,Other - Acquisitions,Financial Control & Accountancy,REAL ASSET MANAGEMENT,3783980,"29,375.00"
Ministry of Justice,NOMS,01/12/2010,Contracted-out Catering Services,Woodhill,ARAMARK LTD,3799490,"25,650.35"
Ministry of Justice,NOMS,01/12/2010,Staff Mess Sales,Isis,ARAMARK LTD,3791570,"25,595.14"
Ministry of Justice,NOMS,01/12/2010,Staff Mess Sales,Isis,ARAMARK LTD,3740780,"25,595.14"
Ministry of Justice,NOMS,02/12/2010,Contracted-out Probation Trusts,Northumbria Probation Trust,NORTHUMBRIA PROBATION TRUST,3800159,"2,376,000.00"
Ministry of Justice,NOMS,02/12/2010,Contracted-out Probation Trusts,Norfolk & Suffolk Probation Trust,NORFOLK AND SUFFOLK PROBATION TRUST,3795705,"1,700,740.71"
Ministry of Justice,NOMS,02/12/2010,Contracted-out Probation Trusts,Cambridgeshire Probation Trust,CAMBRIDGESHIRE & PETERBOROUGH PROBATION TRUST,3795686,"826,093.57"
Ministry of Justice,NOMS,02/12/2010,WIP - Acquisitions,Estates Capacity,INTERSERVE PROJECT SERVICES LTD,3761484,"237,681.23"
Ministry of Justice,NOMS,02/12/2010,Counselling & Advisory Costs,ROM - Yorkshire & Humberside,LIFELINE PROJECT,3798901,"119,027.34"
Ministry of Justice,NOMS,02/12/2010,Subsistence,HOPS Payroll Charge,CALDER CONFERENCE,3800284,"93,324.80"
Ministry of Justice,NOMS,02/12/2010,Contracted-out Probation Boards,Nottingham,NOTTINGHAM PROBATION COMMITTEE,3799347,"43,455.30"
Ministry of Justice,NOMS,02/12/2010,Miscellaneous,Long Lartin,HENDERSON-CAMPBELL LTD,3779717,"42,206.00"
Ministry of Justice,NOMS,02/12/2010,Legal Representation,Director of Probation's Office,TREASURY SOLICITORS,3793832,"40,694.09"
Ministry of Justice,NOMS,02/12/2010,Counselling & Advisory Costs,Styal,LIFELINE PROJECT,3798897,"36,247.54"
Ministry of Justice,NOMS,02/12/2010,Contracted-out Probation Trusts,Whatton,NOTTINGHAMSHIRE PROBATION TRUST,3799346,"36,035.06"
Ministry of Justice,NOMS,02/12/2010,Counselling & Advisory Costs,Exeter,EXETER DRUGS PROJECT,3797950,"29,231.78"
Ministry of Justice,NOMS,02/12/2010,Contracted-out Probation Boards,Onley,NORTHAMPTONSHIRE PROBATION TRUST,3798218,"28,371.18"
Ministry of Justice,NOMS,03/12/2010,VISA Costs,MOJ Shared Services NOMS Delivery,COMPANY BARCLAYCARD,3802011,"1,859,902.47"
Ministry of Justice,NOMS,03/12/2010,Contracted-out Escorts,Prisoner Escort & Custody Service (PECS),SERCO LTD,3800701,"1,301,856.10"
Ministry of Justice,NOMS,03/12/2010,WIP - Acquisitions,Estates Capacity,KIER REGIONAL LTD,3802031,"1,295,271.13"
Ministry of Justice,NOMS,03/12/2010,Contracted-out Escorts,Prisoner Escort & Custody Service (PECS),SERCO LTD,3800702,"1,042,242.83"
Ministry of Justice,NOMS,03/12/2010,Contracted-out Escorts,Prisoner Escort & Custody Service (PECS),G4S CARE & JUSTICE SERVICES LTD,3800335,"675,150.87"
Ministry of Justice,NOMS,03/12/2010,Prison Shop Cost of Sales (No VAT),Chief Operating Officers Office,EXEL EUROPE1 LTD,3801039,"412,135.81"
Ministry of Justice,NOMS,03/12/2010,Prison Shop Cost of Sales,Chief Operating Officers Office,EXEL EUROPE1 LTD,3801039,"203,954.49"
Ministry of Justice,NOMS,03/12/2010,VISA Costs,MOJ Shared Services NOMS Delivery,ARVAL UK LTD,3802009,"108,253.91"
Ministry of Justice,NOMS,03/12/2010,VISA Costs,MOJ Shared Services NOMS Delivery,ARVAL UK LTD,3802010,"63,808.92"
Ministry of Justice,NOMS,03/12/2010,Consultancy,Estates Capacity,RIDER LEVETT BUCKNALL UK LTD,3800151,"55,229.10"
Ministry of Justice,NOMS,03/12/2010,Payments to voluntary Organisations,East of England Regional NOMS Office,NACRO NCT (EAST ANGLIA),3800827,"46,582.46"
Ministry of Justice,NOMS,03/12/2010,Contracted-out Probation Trusts,Liverpool,MERSEYSIDE PROBATION TRUST,3770946,"35,208.18"
Ministry of Justice,NOMS,03/12/2010,Office Equipment Purchases Under 10k,Holme House,STOCKTON-ON-TEES BOROUGH COUNCIL,3784124,"29,765.10"
Ministry of Justice,NOMS,03/12/2010,Rates and Ground Rents,Business and Service Development Group,KING STURGE & CO LTD,3802062,"27,906.25"
Ministry of Justice,NOMS,06/12/2010,Contracted-out Building Maintenance,Estates Capacity,HOME OFFICE - AFU CASH MANAGEMENT,3797899,"12,100,971.52"
Ministry of Justice,NOMS,06/12/2010,Contracted-out operation of prisons and detention centres,Ashfield,PUCKLECHURCH CUSTODIAL SERVICES LTD,3802225,"2,107,320.00"
Ministry of Justice,NOMS,06/12/2010,Contracted-out Escorts,Prisoner Escort & Custody Service (PECS),SERCO LTD,3800703,"1,663,935.17"
Ministry of Justice,NOMS,06/12/2010,Contracted-out operation of prisons and detention centres,Dovegate,MORETON PRISON SERVICES LTD,3802226,"565,440.25"
Ministry of Justice,NOMS,06/12/2010,Contracted-out operation of prisons and detention centres,Parc,BRIDGEND CUSTODIAL SERVICES LTD,3803150,"296,467.20"
Ministry of Justice,NOMS,06/12/2010,WIP - Acquisitions,Estates Capacity,INTERSERVE PROJECT SERVICES LTD,3802235,"121,495.00"
Ministry of Justice,NOMS,06/12/2010,Contract IT Maintenance,MoJ ICT,HP ENTERPRISE SERVICES UK LTD,3802278,"108,680.14"
Ministry of Justice,NOMS,06/12/2010,Contracted-out operation of prisons and detention centres,Parc,BRIDGEND CUSTODIAL SERVICES LTD,3803144,"98,100.00"
Ministry of Justice,NOMS,06/12/2010,Contracted-out Probation Trusts,South East DOMS Office,THAMES VALLEY PROBATION TRUST,3802824,"93,043.80"
Ministry of Justice,NOMS,06/12/2010,Contract IT Maintenance,MoJ ICT,HP ENTERPRISE SERVICES UK LTD,3803005,"83,033.32"
Ministry of Justice,NOMS,06/12/2010,Contracted-out operation of prisons and detention centres,Parc,BRIDGEND CUSTODIAL SERVICES LTD,3803147,"79,488.00"
Ministry of Justice,NOMS,06/12/2010,Contract IT Maintenance,Procurement Group,HP ENTERPRISE SERVICES UK LTD,3766481,"75,891.38"
Ministry of Justice,NOMS,06/12/2010,"Books, Stationery & IT Consumables",Offender Employment Skills & Services Group,CARPENTER LTD,3802938,"66,263.79"
Ministry of Justice,NOMS,06/12/2010,Contracted-out operation of prisons and detention centres,Dovegate,MORETON PRISON SERVICES LTD,3802385,"62,640.00"
Ministry of Justice,NOMS,06/12/2010,WIP - Professional Fees,Estates Capacity,ATKINS LTD,3802315,"51,744.65"
Ministry of Justice,NOMS,06/12/2010,WIP - Acquisitions,Estates Capacity,INTERSERVE PROJECT SERVICES LTD,3802236,"50,525.00"
Ministry of Justice,NOMS,06/12/2010,WIP - Acquisitions,Estates Capacity,CARILLION JM LIMITED,3802959,"44,385.94"
Ministry of Justice,NOMS,06/12/2010,Contracted-out operation of prisons and detention centres,Lowdham Grange,LOWDHAM GRANGE PRISON SERVICES LTD,3802228,"41,779.20"
Ministry of Justice,NOMS,06/12/2010,Contracted-out operation of prisons and detention centres,Lowdham Grange,LOWDHAM GRANGE PRISON SERVICES LTD,3802388,"36,786.79"
Ministry of Justice,NOMS,06/12/2010,Contracted-out Probation Trusts,Liverpool,MERSEYSIDE PROBATION TRUST,3798278,"35,442.27"
Ministry of Justice,NOMS,06/12/2010,Contracted-out Probation Trusts,Preston,LANCASHIRE PROBATION TRUST,3802765,"35,109.48"
Ministry of Justice,NOMS,06/12/2010,Contracted-out Probation Trusts,Hewell,WEST MERCIA PROBATION TRUST,3801203,"28,330.51"
Ministry of Justice,NOMS,06/12/2010,Contracted-out operation of prisons and detention centres,Altcourse,FAZAKERLEY PRISON SERVICES LTD,3803527,"27,472.42"
Ministry of Justice,NOMS,06/12/2010,Contracted-out operation of prisons and detention centres,Parc,BRIDGEND CUSTODIAL SERVICES LTD,3803170,"27,408.58"
Ministry of Justice,NOMS,06/12/2010,Pin Phone Suspense,Birmingham,BT PAYPHONES,3803264,"27,018.97"
Ministry of Justice,NOMS,07/12/2010,Contracted-out Probation Trusts,South East DOMS Office,HAMPSHIRE PROBATION TRUST,3803303,"2,094,000.00"
Ministry of Justice,NOMS,07/12/2010,Contracted-out operation of prisons and detention centres,Rye Hill,ONLEY PRISON SERVICES LTD,3803304,"1,389,922.66"
Ministry of Justice,NOMS,07/12/2010,Contracted-out Probation Trusts,Dorset Probation Trust,DORSET PROBATION TRUST,3804057,"764,391.00"
Ministry of Justice,NOMS,07/12/2010,Contracted-out operation of prisons and detention centres,Altcourse,FAZAKERLEY PRISON SERVICES LTD,3803305,"639,488.10"
Ministry of Justice,NOMS,07/12/2010,WIP - Acquisitions,MoJ ICT,HP ENTERPRISE SERVICES UK LTD,3802981,"215,010.85"
Ministry of Justice,NOMS,07/12/2010,Electricity,Hull,ACTIVE ENERGY LTD,3798197,"116,524.76"
Ministry of Justice,NOMS,07/12/2010,Consultancy,Estates Capacity,PICK EVERARD,3797788,"65,650.95"
Ministry of Justice,NOMS,07/12/2010,Contracted-out Probation Trusts,Leyhill,AVON AND SOMERSET PROBATION TRUST,3804660,"58,565.28"
Ministry of Justice,NOMS,07/12/2010,Contracted-out operation of prisons and detention centres,Dovegate,MORETON PRISON SERVICES LTD,3802387,"57,401.19"
Ministry of Justice,NOMS,07/12/2010,Contracted-out Other Services,Hull,COFATHEC ENERGY PFI LTD,3777635,"39,799.07"
Ministry of Justice,NOMS,07/12/2010,WIP - Professional Fees,Estates Capacity,ATKINS LTD,3803934,"39,668.59"
Ministry of Justice,NOMS,07/12/2010,Other - Acquisitions,Leeds,ACTIVE ENERGY LTD,3798198,"39,635.10"
Ministry of Justice,NOMS,07/12/2010,Contracted-out Resettlement Services,ROM - Yorkshire & Humberside,SHELTER,3804578,"37,711.54"
Ministry of Justice,NOMS,07/12/2010,Contracted-out operation of prisons and detention centres,Rye Hill,ONLEY PRISON SERVICES LTD,3794211,"33,943.06"
Ministry of Justice,NOMS,07/12/2010,Contracted-out operation of prisons and detention centres,Rye Hill,ONLEY PRISON SERVICES LTD,3803517,"33,943.06"
Ministry of Justice,NOMS,07/12/2010,Contracted-out Probation Trusts,Channings Wood,DEVON AND CORNWALL PROBATION TRUST,3802977,"33,096.64"
Ministry of Justice,NOMS,07/12/2010,"New structural works, structural maintenance and equipment",TSS West Midlands Area,FORD-MAINWARING LTD,3802250,"32,841.25"
Ministry of Justice,NOMS,07/12/2010,Contracted-out operation of prisons and detention centres,Rye Hill,ONLEY PRISON SERVICES LTD,3803522,"31,623.18"
Ministry of Justice,NOMS,07/12/2010,Contracted-out Probation Boards,Woodhill,THAMES VALLEY PROBATION TRUST,3804808,"31,622.73"
Ministry of Justice,NOMS,07/12/2010,WIP - Professional Fees,Estates Capacity,WYG GROUP,3798801,"31,396.93"
Ministry of Justice,NOMS,07/12/2010,Library Fees,Wymott,LANCASHIRE COUNTY COUNCIL,3803059,"30,987.00"
Ministry of Justice,NOMS,07/12/2010,Contracted-out Probation Trusts,Risley,CHESHIRE PROBATION TRUST,3804813,"27,202.49"
Ministry of Justice,NOMS,07/12/2010,Electricity,Bure,EDF ENERGY,3804995,"26,463.20"
Ministry of Justice,NOMS,07/12/2010,Contracted-out Probation Boards,Styal,CHESHIRE PROBATION TRUST,3804812,"26,394.28"
Ministry of Justice,NOMS,07/12/2010,WIP - Professional Fees,Estates Capacity,RIDER LEVETT BUCKNALL UK LTD,3802396,"25,313.44"
Ministry of Justice,NOMS,07/12/2010,Contracted-out operation of prisons and detention centres,Rye Hill,ONLEY PRISON SERVICES LTD,3789363,"-31,050.40"
Ministry of Justice,NOMS,07/12/2010,Contracted-out operation of prisons and detention centres,Rye Hill,ONLEY PRISON SERVICES LTD,3788851,"-118,428.00"
Ministry of Justice,NOMS,08/12/2010,Contract IT Maintenance,NOMS ICT,HP ENTERPRISE SERVICES UK LTD,3771772,"1,470,837.64"
Ministry of Justice,NOMS,08/12/2010,Contracted-out operation of prisons and detention centres,Peterborough,PETERBOROUGH PRISON MANAGEMENT LTD,3805893,"1,306,403.96"
Ministry of Justice,NOMS,08/12/2010,Contracted-out Probation Trusts,Hertfordshire Probation Trust,HERTFORDSHIRE PROBATION TRUST,3807383,"941,842.71"
Ministry of Justice,NOMS,08/12/2010,Contracted-out Probation Trusts,York and North Yorkshire Probation Trust,YORK AND NORTH YORKSHIRE PROBATION TRUST,3807243,"826,501.00"
Ministry of Justice,NOMS,08/12/2010,Contracted-out Probation Trusts,Gloucestershire Probation Trust,GLOUCESTERSHIRE PROBATION TRUST,3805815,"621,262.49"
Ministry of Justice,NOMS,08/12/2010,WIP - Acquisitions,MoJ ICT,HP ENTERPRISE SERVICES UK LTD,3807764,"199,373.91"
Ministry of Justice,NOMS,08/12/2010,WIP - Acquisitions,Estates Capacity,KIER REGIONAL LTD,3807670,"190,253.25"
Ministry of Justice,NOMS,08/12/2010,Rates and Ground Rents,Lancaster Castle,DUCHY OF LANCASTER,3797159,"121,542.00"
Ministry of Justice,NOMS,08/12/2010,Professional Advice,Commercial & Competitions Unit,PRICEWATERHOUSECOOPERS LLP,3764650,"85,433.00"
Ministry of Justice,NOMS,08/12/2010,Contracted-out Resettlement Services,NOMS CFO,LEICESTERSHIRE&RUTLAND PROBATION TRUST,3807127,"66,432.28"
Ministry of Justice,NOMS,08/12/2010,Counselling & Advisory Costs,Brixton,R A P T,3781819,"54,937.00"
Ministry of Justice,NOMS,08/12/2010,Contracted-out Resettlement Services,NOMS CFO,LEICESTERSHIRE&RUTLAND PROBATION TRUST,3807405,"54,576.00"
Ministry of Justice,NOMS,08/12/2010,Travel - Non-Taxable,HOPS Payroll Charge,CARLSON WAGONLIT TRAVEL,3807953,"52,916.96"
Ministry of Justice,NOMS,08/12/2010,Contracted-out operation of prisons and detention centres,Peterborough,PETERBOROUGH PRISON MANAGEMENT LTD,3806107,"48,945.60"
Ministry of Justice,NOMS,08/12/2010,Contracted-out Resettlement Services,NOMS CFO,LEICESTERSHIRE&RUTLAND PROBATION TRUST,3807126,"43,776.00"
Ministry of Justice,NOMS,08/12/2010,Professional Advice,Commercial & Competitions Unit,PRICEWATERHOUSECOOPERS LLP,3764651,"42,506.00"
Ministry of Justice,NOMS,08/12/2010,Contracted-out operation of prisons and detention centres,Peterborough,PETERBOROUGH PRISON MANAGEMENT LTD,3805931,"36,950.40"
Ministry of Justice,NOMS,08/12/2010,Contracted-out operation of prisons and detention centres,Peterborough,PETERBOROUGH PRISON MANAGEMENT LTD,3805892,"36,305.87"
Ministry of Justice,NOMS,08/12/2010,Contracted-out operation of prisons and detention centres,Peterborough,PETERBOROUGH PRISON MANAGEMENT LTD,3805930,"33,916.25"
Ministry of Justice,NOMS,08/12/2010,Works,Estates Capacity,SIDDALL & HILTON PRODUCTS LTD,3763435,"32,900.00"
Ministry of Justice,NOMS,08/12/2010,Works,Estates Capacity,SIDDALL & HILTON PRODUCTS LTD,3797896,"32,900.00"
Ministry of Justice,NOMS,08/12/2010,Specialist Contractors,Estates Capacity,LAMBERT SMITH HAMPTON GROUP LTD,3682145,"32,426.66"
Ministry of Justice,NOMS,08/12/2010,Contracted-out operation of prisons and detention centres,Peterborough,PETERBOROUGH PRISON MANAGEMENT LTD,3807804,"26,342.25"
Ministry of Justice,NOMS,08/12/2010,Contracted-out Catering Services,Woodhill,ARAMARK LTD,3807898,"25,650.35"
Ministry of Justice,NOMS,08/12/2010,Electricity,HMP Kennet,MERSEY CARE N H S TRUST,3796391,"25,220.03"
Ministry of Justice,NOMS,08/12/2010,Insurance,Peterborough,PETERBOROUGH PRISON MANAGEMENT LTD,3771302,"-117,500.49"
Ministry of Justice,NOMS,09/12/2010,WIP - Acquisitions,Estates Capacity,KIER REGIONAL LTD,3802174,"13,788,883.50"
Ministry of Justice,NOMS,09/12/2010,Funding payments to Probation Boards,West Midlands DOMS Office,STAFFORDSHIRE AND WEST MIDLANDS PROBATION TRUST,3804829,"5,250,000.00"
Ministry of Justice,NOMS,09/12/2010,Contracted-out Probation Trusts,Wales Probation Trust,WALES PROBATION TRUST,3804564,"4,548,418.00"
Ministry of Justice,NOMS,09/12/2010,Contracted-out Probation Trusts,West Yorkshire Probation Trust,WEST YORKSHIRE PROBATION TRUST,3807242,"3,535,080.00"
Ministry of Justice,NOMS,09/12/2010,Contracted-out operation of prisons and detention centres,Altcourse,FAZAKERLEY PRISON SERVICES LTD,3803306,"3,184,506.00"
Ministry of Justice,NOMS,09/12/2010,Contracted-out operation of prisons and detention centres,Parc,BRIDGEND CUSTODIAL SERVICES LTD,3803139,"2,990,886.69"
Ministry of Justice,NOMS,09/12/2010,Contracted-out Probation Trusts,Merseyside Probation Trust,MERSEYSIDE PROBATION TRUST,3804848,"2,500,000.00"
Ministry of Justice,NOMS,09/12/2010,Contracted-out operation of prisons and detention centres,Dovegate,MORETON PRISON SERVICES LTD,3802227,"2,338,857.17"
Ministry of Justice,NOMS,09/12/2010,Contracted-out Probation Trusts,South East DOMS Office,THAMES VALLEY PROBATION TRUST,3802877,"2,151,033.42"
Ministry of Justice,NOMS,09/12/2010,Contracted-out Probation Trusts,South Yorkshire Probation Trust,SOUTH YORKSHIRE PROBATION TRUST,3807828,"2,118,416.67"
Ministry of Justice,NOMS,09/12/2010,Contracted-out operation of prisons and detention centres,Lowdham Grange,LOWDHAM GRANGE PRISON SERVICES LTD,3802229,"1,978,371.83"
Ministry of Justice,NOMS,09/12/2010,Contracted-out Probation Trusts,Avon and Somerset Probation Trust,AVON AND SOMERSET PROBATION TRUST,3806023,"1,802,705.33"
Ministry of Justice,NOMS,09/12/2010,WIP - Acquisitions,Estates Capacity,BRIDGEND CUSTODIAL SERVICES LTD,3803778,"1,768,995.41"
Ministry of Justice,NOMS,09/12/2010,Contracted-out Probation Trusts,South East DOMS Office,SURREY & SUSSEX PROBATION TRUST,3807166,"1,750,000.00"
Ministry of Justice,NOMS,09/12/2010,Contracted-out Probation Trusts,Devon and Cornwall Probation Trust,DEVON AND CORNWALL PROBATION TRUST,3805766,"1,645,250.00"
Ministry of Justice,NOMS,09/12/2010,Contracted-out Probation Trusts,Essex Probation Trust,ESSEX PROBATION TRUST,3804850,"1,586,710.43"
Ministry of Justice,NOMS,09/12/2010,Contracted-out Probation Trusts,Nottinghamshire Probation Trust,NOTTINGHAMSHIRE PROBATION TRUST,3807081,"1,549,200.00"
Ministry of Justice,NOMS,09/12/2010,Funding payments to Probation Boards,West Midlands DOMS Office,WEST MERCIA PROBATION TRUST,3804835,"1,311,930.00"
Ministry of Justice,NOMS,09/12/2010,Contracted-out Probation Trusts,Cheshire Probation Trust,CHESHIRE PROBATION TRUST,3804566,"1,260,000.00"
Ministry of Justice,NOMS,09/12/2010,Contracted-out operation of prisons and detention centres,Peterborough,PETERBOROUGH PRISON MANAGEMENT LTD,3806109,"1,149,988.50"
Ministry of Justice,NOMS,09/12/2010,Contracted-out Escorts,Prisoner Escort & Custody Service (PECS),G4S CARE & JUSTICE SERVICES LTD,3800709,"1,084,779.21"
Ministry of Justice,NOMS,09/12/2010,Contracted-out Escorts,Prisoner Escort & Custody Service (PECS),G4S CARE & JUSTICE SERVICES LTD,3800708,"951,724.00"
Ministry of Justice,NOMS,09/12/2010,WIP - Acquisitions,Estates Capacity,WILLMOTT DIXON CONSTRUCTION LTD,3808783,"640,639.55"
Ministry of Justice,NOMS,09/12/2010,Contracted-out Probation Trusts,Wiltshire Probation Trust,WILTSHIRE PROBATION TRUST,3804573,"637,992.00"
Ministry of Justice,NOMS,09/12/2010,Contracted-out Escorts,Prisoner Escort & Custody Service (PECS),G4S CARE & JUSTICE SERVICES LTD,3800707,"508,348.33"
Ministry of Justice,NOMS,09/12/2010,WIP - Acquisitions,Estates Capacity,KIER REGIONAL LTD,3808193,"417,125.00"
Ministry of Justice,NOMS,09/12/2010,WIP - Acquisitions,Estates Capacity,BRIDGEND CUSTODIAL SERVICES LTD,3803779,"398,032.43"
Ministry of Justice,NOMS,09/12/2010,WIP - Acquisitions,Estates Capacity,WATES CONSTRUCTION LTD,3808205,"165,227.33"
Ministry of Justice,NOMS,09/12/2010,Subsistence,HOPS Payroll Charge,CALDER CONFERENCE,3808971,"96,654.97"
Ministry of Justice,NOMS,09/12/2010,"Books, Stationery & IT Consumables",Offender Employment Skills & Services Group,CHARLES FELLOWS SUPPLIES LTD,3807762,"87,398.85"
Ministry of Justice,NOMS,09/12/2010,Contracted-out Resettlement Services,NOMS CFO,PERTEMPS PEOPLE DEVELOPMENT GROUP,3801236,"82,917.65"
Ministry of Justice,NOMS,09/12/2010,Water and Sewage,Birmingham,SEVERN TRENT WATER LTD,3791088,"52,722.18"
Ministry of Justice,NOMS,09/12/2010,Clothing,Offender Employment Skills & Services Group,JIANGSU SAINTY CORP LTD,3808898,"51,350.66"
Ministry of Justice,NOMS,09/12/2010,WIP - Acquisitions,Estates Capacity,MAYBOURNE & RUSSELL LTD,3780646,"49,884.63"
Ministry of Justice,NOMS,09/12/2010,Contracted-out operation of prisons and detention centres,Bronzefield,ASHFORD PRISON SERVICES LIMITED,3805729,"49,391.36"
Ministry of Justice,NOMS,09/12/2010,Clothing,Offender Employment Skills & Services Group,JIANGSU SAINTY CORP LTD,3808907,"39,184.32"
Ministry of Justice,NOMS,09/12/2010,Contracted-out Probation Boards,Eastwood Park,AVON AND SOMERSET PROBATION TRUST,3807051,"34,727.36"
Ministry of Justice,NOMS,09/12/2010,Other - Acquisitions,East of England Regional NOMS Office,FALCON FOODSERVICE EQUIPMENT,3806134,"32,115.12"
Ministry of Justice,NOMS,09/12/2010,Contracted-out operation of prisons and detention centres,Bronzefield,ASHFORD PRISON SERVICES LIMITED,3805730,"28,696.64"
Ministry of Justice,NOMS,09/12/2010,Contracted-out Resettlement Services,Business and Service Development Group,PARTNERS OF PRISONERS & FAMILIES SUPPORT GROUP,3807574,"28,150.00"
Ministry of Justice,NOMS,09/12/2010,Specialist Contractors,NOMIS Programme,CAPITA RESOURCING LTD,3808168,"25,378.83"
Ministry of Justice,NOMS,09/12/2010,Counselling & Advisory Costs,NOMS Cymru Regional Services,WALES PROBATION TRUST,3804563,"25,062.20"
Ministry of Justice,NOMS,09/12/2010,Contracted-out operation of prisons and detention centres,Bronzefield,ASHFORD PRISON SERVICES LIMITED,3733306,"-84,608.70"
Ministry of Justice,NOMS,10/12/2010,Contracted-out Probation Trusts,Northumbria Probation Trust,NORTHUMBRIA PROBATION TRUST,3810027,"2,354,551.00"
Ministry of Justice,NOMS,10/12/2010,Contracted-out Probation Trusts,Lancashire Probation Trust,LANCASHIRE PROBATION TRUST,3807408,"2,000,000.00"
Ministry of Justice,NOMS,10/12/2010,Contracted-out Probation Trusts,Humberside Probation Trust,HUMBERSIDE PROBATION TRUST,3805927,"1,526,821.17"
Ministry of Justice,NOMS,10/12/2010,Contract IT Maintenance,NOMS ICT,HP ENTERPRISE SERVICES UK LTD,3803007,"920,799.37"
Ministry of Justice,NOMS,10/12/2010,Prison Shop Cost of Sales,Chief Operating Officers Office,EXEL EUROPE1 LTD,3809754,"446,063.47"
Ministry of Justice,NOMS,10/12/2010,Rates and Ground Rents,Estates Capacity,FENLAND DISTRICT COUNCIL,3472433,"44,298.00"
Ministry of Justice,NOMS,10/12/2010,Rates and Ground Rents,Estates Capacity,CITY OF WAKEFIELD,3472331,"36,939.35"
Ministry of Justice,NOMS,10/12/2010,WIP - Acquisitions,Estates Capacity,INTERSERVE PROJECT SERVICES LTD,3804170,"327,295.77"
Ministry of Justice,NOMS,10/12/2010,Rates and Ground Rents,Estates Capacity,KINGSTON-UPON-HULL CITY COUNCIL,3472429,"29,588.58"
Ministry of Justice,NOMS,10/12/2010,Rates and Ground Rents,Estates Capacity,WARRINGTON BOROUGH COUNCIL,3472333,"27,945.00"
Ministry of Justice,NOMS,10/12/2010,Legal Representation,Director of Probation's Office,DURHAM TEES VALLEY PROBATION TRUST,3809282,"257,673.03"
Ministry of Justice,NOMS,10/12/2010,Prison Shop Cost of Sales (No VAT),Chief Operating Officers Office,EXEL EUROPE1 LTD,3809754,"235,360.79"
Ministry of Justice,NOMS,10/12/2010,Legal Representation,Director of Probation's Office,LONDON PROBATION TRUST,3809598,"208,497.19"
Ministry of Justice,NOMS,10/12/2010,WIP - Professional Fees,Estates Capacity,FAITHFUL + GOULD,3803115,"190,741.28"
Ministry of Justice,NOMS,10/12/2010,WIP - Acquisitions,MoJ ICT,HP ENTERPRISE SERVICES UK LTD,3803003,"184,750.33"
Ministry of Justice,NOMS,10/12/2010,Legal Representation,Director of Probation's Office,LONDON PROBATION TRUST,3809285,"160,000.00"
Ministry of Justice,NOMS,10/12/2010,Funding payments to Probation Boards,West Midlands DOMS Office,WEST MERCIA PROBATION TRUST,3760528,"151,000.00"
Ministry of Justice,NOMS,10/12/2010,WIP - Acquisitions,Estates Capacity,KIER REGIONAL LTD,3809611,"138,506.65"
Ministry of Justice,NOMS,10/12/2010,WIP - Acquisitions,Estates Capacity,INTERSERVE PROJECT SERVICES LTD,3802142,"123,665.41"
Ministry of Justice,NOMS,10/12/2010,WIP - Acquisitions,MoJ ICT,HP ENTERPRISE SERVICES UK LTD,3804473,"115,469.48"
Ministry of Justice,NOMS,10/12/2010,WIP - Acquisitions,MoJ ICT,HP ENTERPRISE SERVICES UK LTD,3802983,"108,412.96"
Ministry of Justice,NOMS,10/12/2010,Contract IT Maintenance,MoJ ICT,HP ENTERPRISE SERVICES UK LTD,3804474,"104,655.23"
Ministry of Justice,NOMS,10/12/2010,Contracted-out Resettlement Services,NOMS CFO,SOVA,3808338,"85,328.00"
Ministry of Justice,NOMS,10/12/2010,Legal Representation,Director of Probation's Office,LONDON PROBATION TRUST,3809594,"75,196.21"
Ministry of Justice,NOMS,10/12/2010,Electricity,Wymott,EDF ENERGY,3810284,"72,979.65"
Ministry of Justice,NOMS,10/12/2010,Electricity,Wymott,EDF ENERGY,3810283,"67,316.50"
Ministry of Justice,NOMS,10/12/2010,"New structural works, structural maintenance and equipment",TSS West Midlands Area,BURTON ENVIRONMENTAL SERVICES LTD,3805881,"60,071.88"
Ministry of Justice,NOMS,10/12/2010,Electricity,Lindholme,EDF ENERGY,3810263,"59,493.89"
Ministry of Justice,NOMS,10/12/2010,Contracted-out Resettlement Services,Rehabilitation Services Group,PRISON ADVICE & CARE TRUST (P A C T),3809658,"56,433.33"
Ministry of Justice,NOMS,10/12/2010,Resource Grants / Grant-in-Aid,Wales/Cymru DOMS Office,NORTH WALES WOMEN'S CENTRE,3807916,"56,250.00"
Ministry of Justice,NOMS,10/12/2010,WIP - Acquisitions,MoJ ICT,HP ENTERPRISE SERVICES UK LTD,3802980,"51,574.58"
Ministry of Justice,NOMS,10/12/2010,Clothing,Offender Employment Skills & Services Group,JIANGSU SAINTY CORP LTD,3808903,"51,187.50"
Ministry of Justice,NOMS,10/12/2010,WIP - Acquisitions,MoJ ICT,HP ENTERPRISE SERVICES UK LTD,3802982,"48,335.04"
Ministry of Justice,NOMS,10/12/2010,Specialist Contractors,Procurement Group,CAPGEMINI UK PLC,3809222,"48,175.00"
Ministry of Justice,NOMS,10/12/2010,Other Fuels,Chelmsford,COFATHEC ENERGY SERVICES UK LTD,3810154,"45,556.87"
Ministry of Justice,NOMS,10/12/2010,Electricity,Frankland,EDF ENERGY,3810301,"44,610.93"
Ministry of Justice,NOMS,10/12/2010,Electricity,Acklington,EDF ENERGY,3810300,"42,222.53"
Ministry of Justice,NOMS,10/12/2010,Contracted-out Visitor's Centres,Littlehey,LITTLEHEY VISITORS CENTRE ASSOCIATION,3810001,"41,320.00"
Ministry of Justice,NOMS,10/12/2010,Electricity,Highdown,EDF ENERGY,3810331,"39,789.59"
Ministry of Justice,NOMS,10/12/2010,Electricity,Wandsworth,EDF ENERGY,3810077,"39,433.88"
Ministry of Justice,NOMS,10/12/2010,Electricity,Highdown,EDF ENERGY,3810330,"37,776.98"
Ministry of Justice,NOMS,10/12/2010,Electricity,Birmingham,EDF ENERGY,3810129,"37,077.44"
Ministry of Justice,NOMS,10/12/2010,Electricity,Liverpool,EDF ENERGY,3810278,"35,700.51"
Ministry of Justice,NOMS,10/12/2010,Specialist Contractors,Secretariat,CENTRAL OFFICE OF INFORMATION,3790889,"34,776.00"
Ministry of Justice,NOMS,10/12/2010,Electricity,Risley,EDF ENERGY,3810149,"32,497.16"
Ministry of Justice,NOMS,10/12/2010,Electricity,Sheppey Clustered Services,EDF ENERGY,3810133,"31,672.37"
Ministry of Justice,NOMS,10/12/2010,Electricity,Bullingdon,EDF ENERGY,3810081,"31,334.80"
Ministry of Justice,NOMS,10/12/2010,Electricity,Liverpool,EDF ENERGY,3810276,"31,167.56"
Ministry of Justice,NOMS,10/12/2010,Electricity,Woodhill,EDF ENERGY,3810305,"30,997.67"
Ministry of Justice,NOMS,10/12/2010,Electricity,Highpoint,EDF ENERGY,3810252,"29,684.67"
Ministry of Justice,NOMS,10/12/2010,Electricity,Hewell,EDF ENERGY,3810120,"28,396.68"
Ministry of Justice,NOMS,10/12/2010,Electricity,Wealstun,EDF ENERGY,3810137,"25,100.34"
Ministry of Justice,NOMS,10/12/2010,Electricity,Liverpool,EDF ENERGY,3810274,"-30,981.10"
Ministry of Justice,NOMS,10/12/2010,Electricity,Highdown,EDF ENERGY,3810329,"-37,790.91"
Ministry of Justice,NOMS,10/12/2010,Electricity,Wymott,EDF ENERGY,3810282,"-66,669.05"
Ministry of Justice,NOMS,13/12/2010,Contracted-out Probation Trusts,Greater Manchester Probation Trust,GREATER MANCHESTER PROBATION TRUST,3812909,"4,109,070.00"
Ministry of Justice,NOMS,13/12/2010,WIP - Acquisitions,Estates Capacity,WATES CONSTRUCTION LTD,3812222,"3,123,308.21"
Ministry of Justice,NOMS,13/12/2010,Contracted-out Probation Trusts,South East DOMS Office,KENT PROBATION TRUST,3811967,"2,000,000.00"
Ministry of Justice,NOMS,13/12/2010,Prison Shop Cost of Sales,Chief Operating Officers Office,EXEL EUROPE1 LTD,3811743,"1,224,727.00"
Ministry of Justice,NOMS,13/12/2010,Contracted-out Probation Trusts,Bedfordshire Probation Trust,BEDFORDSHIRE PROBATION TRUST,3809111,"770,861.14"
Ministry of Justice,NOMS,13/12/2010,Funding payments to Probation Boards,West Midlands DOMS Office,WARWICKSHIRE PROBATION TRUST,3812166,"700,000.00"
Ministry of Justice,NOMS,13/12/2010,WIP - Acquisitions,Estates Capacity,KIER REGIONAL LTD,3812375,"492,548.25"
Ministry of Justice,NOMS,13/12/2010,WIP - Acquisitions,Estates Capacity,INTERSERVE PROJECT SERVICES LTD,3812292,"270,250.00"
Ministry of Justice,NOMS,13/12/2010,Contracted-out Building Maintenance,Brixton,CARILLION SERVICES 2006 LTD,3804476,"202,828.14"
Ministry of Justice,NOMS,13/12/2010,WIP - Acquisitions,Estates Capacity,HENRY BOOT CONSTRUCTION (U K) LTD,3811786,"158,527.48"
Ministry of Justice,NOMS,13/12/2010,WIP - Acquisitions,Estates Capacity,WATES CONSTRUCTION LTD,3812304,"146,887.93"
Ministry of Justice,NOMS,13/12/2010,Contracted-out Building Maintenance,Isis,CARILLION CONSTRUCTION LTD,3804477,"130,784.23"
Ministry of Justice,NOMS,13/12/2010,Gas,Kirkham,COFATHEC ENERGY PFI LTD,3812416,"127,334.51"
Ministry of Justice,NOMS,13/12/2010,Contracted-out Probation Trusts,South East DOMS Office,KENT PROBATION TRUST,3811966,"103,602.00"
Ministry of Justice,NOMS,13/12/2010,Gas,Pentonville,COFATHEC ENERGY PFI LTD,3812399,"95,955.41"
Ministry of Justice,NOMS,13/12/2010,Contracted-out Other Services,Gartree,COFATHEC ENERGY PFI LTD,3812305,"88,206.52"
Ministry of Justice,NOMS,13/12/2010,Contracted-out Probation Boards,London DOMS Office,LONDON PROBATION TRUST,3811778,"76,176.00"
Ministry of Justice,NOMS,13/12/2010,Contracted-out Other Services,New Hall,COFATHEC ENERGY PFI LTD,3812422,"74,598.47"
Ministry of Justice,NOMS,13/12/2010,Contracted-out Other Services,IW Cluster,COFATHEC ENERGY SERVICES UK LTD,3812323,"69,993.53"
Ministry of Justice,NOMS,13/12/2010,Gas,Preston,COFATHEC ENERGY PFI LTD,3812335,"69,052.11"
Ministry of Justice,NOMS,13/12/2010,Contracted-out Other Services,Dartmoor,COFATHEC ENERGY SERVICES UK LTD,3811960,"68,441.18"
Ministry of Justice,NOMS,13/12/2010,Contracted-out Other Services,Deerbolt,COFATHEC ENERGY SERVICES UK LTD,3811958,"52,746.75"
Ministry of Justice,NOMS,13/12/2010,Contracted-out Other Services,IW Cluster,COFATHEC ENERGY SERVICES UK LTD,3810819,"50,030.37"
Ministry of Justice,NOMS,13/12/2010,Gas,Lewes,COFATHEC ENERGY SERVICES UK LTD,3812332,"49,922.54"
Ministry of Justice,NOMS,13/12/2010,Contracted-out Probation Boards,Wandsworth,LONDON PROBATION TRUST,3811932,"44,154.35"
Ministry of Justice,NOMS,13/12/2010,Contracted-out Other Services,Gloucester,COFATHEC ENERGY PFI LTD,3812387,"43,625.68"
Ministry of Justice,NOMS,13/12/2010,Electricity,Belmarsh,EDF ENERGY,3812348,"42,270.03"
Ministry of Justice,NOMS,13/12/2010,Electricity,Ranby,EDF ENERGY,3812389,"33,579.91"
Ministry of Justice,NOMS,13/12/2010,Works,Estates Capacity,BIRMINGHAM BARBED TAPE LTD,3807413,"32,900.00"
Ministry of Justice,NOMS,13/12/2010,Works,Estates Capacity,BIRMINGHAM BARBED TAPE LTD,3790738,"32,900.00"
Ministry of Justice,NOMS,13/12/2010,Contracted-out Probation Trusts,Glen Parva,LEICESTERSHIRE&RUTLAND PROBATION TRUST,3811340,"32,633.34"
Ministry of Justice,NOMS,13/12/2010,Electricity,Wormwood Scrubs,EDF ENERGY,3812339,"29,007.41"
Ministry of Justice,NOMS,13/12/2010,Electricity,Holme House,EDF ENERGY,3812458,"27,697.22"
Ministry of Justice,NOMS,13/12/2010,Contracted-out Probation Trusts,Holloway,LONDON PROBATION TRUST,3811935,"27,081.74"
Ministry of Justice,NOMS,13/12/2010,WIP - Acquisitions,Estates Capacity,BIRMINGHAM BARBED TAPE LTD,3759893,"26,320.00"
Ministry of Justice,NOMS,13/12/2010,WIP - Professional Fees,Estates Capacity,WT PARTNERSHIP,3809247,"25,539.42"
Ministry of Justice,NOMS,14/12/2010,Contract IT Maintenance,MoJ ICT,STERIA LTD,3814160,"3,039,178.93"
Ministry of Justice,NOMS,14/12/2010,Contract IT Maintenance,MoJ ICT,IBM DIRECT( UNITED KINGDOM) LTD,3766439,"1,702,623.91"
Ministry of Justice,NOMS,14/12/2010,WIP - Acquisitions,Estates Capacity,WATES CONSTRUCTION LTD,3771751,"550,366.48"
Ministry of Justice,NOMS,14/12/2010,WIP - Acquisitions,Estates Capacity,SHAYLOR CONSTRUCTION LTD,3813730,"417,882.88"
Ministry of Justice,NOMS,14/12/2010,WIP - Acquisitions,Estates Capacity,WATES CONSTRUCTION LTD,3812678,"246,257.68"
Ministry of Justice,NOMS,14/12/2010,WIP - Acquisitions,Estates Capacity,INTERSERVE PROJECT SERVICES LTD,3813772,"215,025.00"
Ministry of Justice,NOMS,14/12/2010,Phase 1,NOMS ICT,MINISTRY OF JUSTICE,3813942,"147,640.77"
Ministry of Justice,NOMS,14/12/2010,WIP - Acquisitions,MoJ ICT,STERIA LTD,3814160,"100,354.22"
Ministry of Justice,NOMS,14/12/2010,"Books, Stationery & IT Consumables",Wealstun,HALL CONSTRUCTION GROUP LTD,3797933,"66,836.86"
Ministry of Justice,NOMS,14/12/2010,Counselling & Advisory Costs,Pentonville,R A P T,3813546,"65,755.59"
Ministry of Justice,NOMS,14/12/2010,Contracted-out Other Services,Blundeston,COFATHEC ENERGY SERVICES UK LTD,3811959,"60,304.33"
Ministry of Justice,NOMS,14/12/2010,Counselling & Advisory Costs,Wandsworth,R A P T,3813549,"53,299.83"
Ministry of Justice,NOMS,14/12/2010,Specialist Contractors,Audit & Corporate Assurance,UNIVERSITY OF CAMBRIDGE,3814129,"48,807.75"
Ministry of Justice,NOMS,14/12/2010,Counselling & Advisory Costs,Bullingdon,R A P T,3813393,"39,511.54"
Ministry of Justice,NOMS,14/12/2010,Contracted-out Probation Boards,Pentonville,LONDON PROBATION TRUST,3811931,"38,439.81"
Ministry of Justice,NOMS,14/12/2010,Counselling & Advisory Costs,Wormwood Scrubs,R A P T,3813720,"36,507.76"
Ministry of Justice,NOMS,14/12/2010,Counselling & Advisory Costs,Highdown,R A P T,3813722,"35,890.49"
Ministry of Justice,NOMS,14/12/2010,Phase 1,MOJ Project & ATOS,IDENTITY & PASSPORT SERVICE,3814127,"32,236.40"
Ministry of Justice,NOMS,14/12/2010,Counselling & Advisory Costs,Sheppey Clustered Services,R A P T,3813721,"30,347.43"
Ministry of Justice,NOMS,14/12/2010,Specialist Contractors,NOMS ICT,MINISTRY OF JUSTICE,3813943,"29,809.75"
Ministry of Justice,NOMS,14/12/2010,Contracted-out Probation Boards,Belmarsh,LONDON PROBATION TRUST,3811938,"27,645.92"
Ministry of Justice,NOMS,14/12/2010,Superannuation,NOMS ICT,MINISTRY OF JUSTICE,3813942,"27,449.01"
Ministry of Justice,NOMS,14/12/2010,ERNIC,NOMS ICT,MINISTRY OF JUSTICE,3813942,"25,389.05"
Ministry of Justice,NOMS,14/12/2010,Counselling & Advisory Costs,Wayland,PHOENIX FUTURES,3813561,"25,084.00"
Ministry of Justice,NOMS,14/12/2010,Contracted-out Library,Cookham Wood,MEDWAY COUNCIL,3813482,"25,003.00"
Ministry of Justice,NOMS,15/12/2010,WIP - Acquisitions,Estates Capacity,KIER NORTHERN,3814577,"2,064,123.68"
Ministry of Justice,NOMS,15/12/2010,Contract IT Maintenance,NOMS ICT,HP ENTERPRISE SERVICES UK LTD,3815540,"1,424,052.93"
Ministry of Justice,NOMS,15/12/2010,Contracted-out Escorts,Prisoner Escort & Custody Service (PECS),RELIANCE SECURE TASK MANAGEMENT,3778932,"955,942.64"
Ministry of Justice,NOMS,15/12/2010,Payroll Services,HOPS Payroll Charge,DWP - JOB CENTRE PLUS,3817016,"886,864.16"
Ministry of Justice,NOMS,15/12/2010,Specialist Contractors,Director of HRs Office & Strategic Planning,PARITY RESOURCES LTD,3792907,"448,165.52"
Ministry of Justice,NOMS,15/12/2010,"New structural works, structural maintenance and equipment",East of England Regional NOMS Office,DELTA DESIGN SYSTEMS LTD,3802181,"141,293.75"
Ministry of Justice,NOMS,15/12/2010,Contract IT Maintenance,MoJ ICT,HP ENTERPRISE SERVICES UK LTD,3814822,"121,306.66"
Ministry of Justice,NOMS,15/12/2010,Payroll Services,HOPS Payroll Charge,DWP - JOB CENTRE PLUS,3809766,"110,858.02"
Ministry of Justice,NOMS,15/12/2010,Clothing,Offender Employment Skills & Services Group,BURLINGTON UNIFORMS LTD,3790746,"98,643.60"
Ministry of Justice,NOMS,15/12/2010,"Books, Stationery & IT Consumables",Offender Employment Skills & Services Group,BURLINGTON UNIFORMS LTD,3761090,"97,022.67"
Ministry of Justice,NOMS,15/12/2010,Resource Grants / Grant-in-Aid,ROM - North West,SALFORD FOUNDATION LTD,3810003,"96,000.00"
Ministry of Justice,NOMS,15/12/2010,WIP - Acquisitions,Estates Capacity,KIER REGIONAL LTD,3815352,"91,204.68"
Ministry of Justice,NOMS,15/12/2010,Contracted-out Library,Rochester,MEDWAY COUNCIL,3816485,"79,362.00"
Ministry of Justice,NOMS,15/12/2010,Specialist Contractors,Estates Capacity,LAMBERT SMITH HAMPTON GROUP LTD,3803764,"69,560.47"
Ministry of Justice,NOMS,15/12/2010,Travel - Non-Taxable,HOPS Payroll Charge,CARLSON WAGONLIT TRAVEL,3817077,"67,793.36"
Ministry of Justice,NOMS,15/12/2010,Contract IT Maintenance,MoJ ICT,HP ENTERPRISE SERVICES UK LTD,3814823,"53,768.43"
Ministry of Justice,NOMS,15/12/2010,Specialist Contractors,NOMS ICT,MINISTRY OF JUSTICE,3813944,"49,235.46"
Ministry of Justice,NOMS,15/12/2010,WIP - Professional Fees,Estates Capacity,AEDAS ARCHITECTS LTD,3815176,"48,266.88"
Ministry of Justice,NOMS,15/12/2010,Contract IT Maintenance,MoJ ICT,HP ENTERPRISE SERVICES UK LTD,3814821,"43,864.11"
Ministry of Justice,NOMS,15/12/2010,Counselling & Advisory Costs,Holloway,R A P T,3817017,"41,173.18"
Ministry of Justice,NOMS,15/12/2010,Electricity,Manchester,EDF ENERGY,3816937,"40,892.68"
Ministry of Justice,NOMS,15/12/2010,Professional Advice,Procurement Group,SIMMONS & SIMMONS,3815967,"39,020.00"
Ministry of Justice,NOMS,15/12/2010,"Books, Stationery & IT Consumables",Offender Employment Skills & Services Group,BURLINGTON UNIFORMS LTD,3778835,"36,442.35"
Ministry of Justice,NOMS,15/12/2010,Electricity,Sheppey Clustered Services,EDF ENERGY,3816936,"35,452.76"
Ministry of Justice,NOMS,15/12/2010,Staff Mess Sales,Isis,ARAMARK LTD,3816931,"34,117.63"
Ministry of Justice,NOMS,15/12/2010,WIP - Professional Fees,Estates Capacity,JACOBS ENGINEERING UK,3764942,"33,006.68"
Ministry of Justice,NOMS,15/12/2010,Professional Advice,HR Policy & Reward Group,BIS DEPARTMENT FOR BUSINESS INNOVATION & SKILLS,3814694,"32,760.00"
Ministry of Justice,NOMS,15/12/2010,Contract IT Maintenance,NOMS ICT,HP ENTERPRISE SERVICES UK LTD,3803006,"32,339.96"
Ministry of Justice,NOMS,15/12/2010,WIP - Acquisitions,Estates Capacity,WATES CONSTRUCTION LTD,3814663,"31,383.39"
Ministry of Justice,NOMS,15/12/2010,Electricity,Full Sutton,EDF ENERGY,3816951,"30,472.46"
Ministry of Justice,NOMS,15/12/2010,Electricity,Wakefield,EDF ENERGY,3816957,"28,259.80"
Ministry of Justice,NOMS,15/12/2010,Specialist Contractors,Estates Capacity,LAMBERT SMITH HAMPTON GROUP LTD,3610761,"27,826.35"
Ministry of Justice,NOMS,15/12/2010,Electricity,Littlehey,EDF ENERGY,3816956,"25,745.66"
Ministry of Justice,NOMS,15/12/2010,Electricity,Long Lartin,EDF ENERGY,3816948,"25,475.97"
Ministry of Justice,NOMS,15/12/2010,Contracted-out Escorts,Prisoner Escort & Custody Service (PECS),RELIANCE SECURE TASK MANAGEMENT,3809235,"-38,627.67"
Ministry of Justice,NOMS,15/12/2010,"New structural works, structural maintenance and equipment",East of England Regional NOMS Office,DELTA DESIGN SYSTEMS LTD,3808673,"-141,293.75"
Ministry of Justice,NOMS,15/12/2010,Contract IT Maintenance,NOMS ICT,HP ENTERPRISE SERVICES UK LTD,3813945,"-425,090.44"
Ministry of Justice,NOMS,16/12/2010,Contracted-out Probation Boards,London DOMS Office,LONDON PROBATION TRUST,3817701,"11,425,000.00"
Ministry of Justice,NOMS,16/12/2010,WIP - Acquisitions,Estates Capacity,VINCI CONSTRUCTION UK LTD,3817853,"171,102.33"
Ministry of Justice,NOMS,16/12/2010,WIP - Acquisitions,Estates Capacity,HENRY BOOT CONSTRUCTION (U K) LTD,3817384,"133,236.78"
Ministry of Justice,NOMS,16/12/2010,Subsistence,HOPS Payroll Charge,CALDER CONFERENCE,3817783,"101,976.65"
Ministry of Justice,NOMS,16/12/2010,WIP - Acquisitions,Whitemoor,POWERPERFECTOR PLC ,3816787,"98,799.88"
Ministry of Justice,NOMS,16/12/2010,WIP - Acquisitions,Estates Capacity,CRISPIN & BORST LTD,3693302,"66,779.95"
Ministry of Justice,NOMS,16/12/2010,"New structural works, structural maintenance and equipment",East of England Regional NOMS Office,DELTA DESIGN SYSTEMS LTD,3808192,"56,517.50"
Ministry of Justice,NOMS,16/12/2010,WIP - Acquisitions,Estates Capacity,CRISPIN & BORST LTD,3777977,"54,492.75"
Ministry of Justice,NOMS,16/12/2010,Contracted-out Probation Boards,Bure,NORFOLK AND SUFFOLK PROBATION TRUST,3814540,"35,036.60"
Ministry of Justice,NOMS,16/12/2010,Rates and Ground Rents,Director of Finance Office,KNIGHT FRANK LLP,3804565,"32,250.00"
Ministry of Justice,NOMS,16/12/2010,Counselling & Advisory Costs,Liverpool,LIFELINE PROJECT,3814971,"27,821.72"
Ministry of Justice,NOMS,16/12/2010,Electricity,Leeds,EDF ENERGY,3817683,"25,811.07"
Ministry of Justice,NOMS,16/12/2010,Electricity,Leeds,EDF ENERGY,3817682,"-25,661.95"
Ministry of Justice,NOMS,16/12/2010,WIP - Acquisitions,Estates Capacity,CRISPIN & BORST LTD,3796694,"-66,779.95"
Ministry of Justice,NOMS,17/12/2010,Contracted-out Probation Trusts,Durham Tees Valley Probation Trust,DURHAM TEES VALLEY PROBATION TRUST,3816685,"1,924,056.20"
Ministry of Justice,NOMS,17/12/2010,WIP - Acquisitions,Estates Capacity,MORETON PRISON SERVICES LTD,3779825,"859,218.75"
Ministry of Justice,NOMS,17/12/2010,Contracted-out Probation Trusts,Cumbria Probation Trust,CUMBRIA PROBATION TRUST,3817778,"769,553.19"
Ministry of Justice,NOMS,17/12/2010,Contracted-out Escorts,Prisoner Escort & Custody Service (PECS),G4S CARE & JUSTICE SERVICES LTD,3800331,"553,778.50"
Ministry of Justice,NOMS,17/12/2010,Specialist Contractors,Director of HRs Office & Strategic Planning,PARITY RESOURCES LTD,3814586,"394,302.33"
Ministry of Justice,NOMS,17/12/2010,WIP - Acquisitions,Estates Capacity,ISG REGIONS LTD,3806851,"282,363.08"
Ministry of Justice,NOMS,17/12/2010,WIP - Acquisitions,Estates Capacity,ISG REGIONS LTD,3806849,"248,675.83"
Ministry of Justice,NOMS,17/12/2010,WIP - Acquisitions,Estates Capacity,WATES CONSTRUCTION LTD,3816791,"231,636.42"
Ministry of Justice,NOMS,17/12/2010,Contracted-out Computer Services,NOMIS Programme,STERIA LTD,3794191,"188,274.15"
Ministry of Justice,NOMS,17/12/2010,WIP - Acquisitions,Estates Capacity,ISG REGIONS LTD,3818974,"179,764.43"
Ministry of Justice,NOMS,17/12/2010,Contracted-out Resettlement Services,NOMS CFO,SOVA,3808339,"100,056.00"
Ministry of Justice,NOMS,17/12/2010,Miscellaneous,Long Lartin,HENDERSON-CAMPBELL LTD,3813756,"78,110.48"
Ministry of Justice,NOMS,17/12/2010,WIP - Professional Fees,Estates Capacity,CYRIL SWEETT LTD,3802084,"30,071.31"
Ministry of Justice,NOMS,17/12/2010,Contracted-out Probation Trusts,Norwich,NORFOLK AND SUFFOLK PROBATION TRUST,3816993,"27,920.76"
Ministry of Justice,NOMS,20/12/2010,Contracted-out Electronic Monitoring,National Operations Group,SERCO LTD,3817524,"3,973,262.98"
Ministry of Justice,NOMS,20/12/2010,Contracted-out operation of prisons and detention centres,Bronzefield,ASHFORD PRISON SERVICES LIMITED,3806095,"2,180,611.64"
Ministry of Justice,NOMS,20/12/2010,Contracted-out operation of prisons and detention centres,Wolds,G4S CARE & JUSTICE SERVICES LTD,3819607,"750,402.18"
Ministry of Justice,NOMS,20/12/2010,WIP - Acquisitions,Estates Capacity,INTERSERVE PROJECT SERVICES LTD,3819646,"342,384.43"
Ministry of Justice,NOMS,20/12/2010,WIP - Acquisitions,Estates Capacity,INTERSERVE PROJECT SERVICES LTD,3815579,"321,853.65"
Ministry of Justice,NOMS,20/12/2010,WIP - Acquisitions,Estates Capacity,LORNE STEWART PLC,3817586,"149,125.13"
Ministry of Justice,NOMS,20/12/2010,Contracted-out Resettlement Services,NOMS CFO,MERSEYSIDE PROBATION TRUST,3820896,"117,121.27"
Ministry of Justice,NOMS,20/12/2010,Resource Grants / Grant-in-Aid,Business and Service Development Group,CLINKS,3819076,"100,000.00"
Ministry of Justice,NOMS,20/12/2010,Contracted-out Resettlement Services,NOMS CFO,MERSEYSIDE PROBATION TRUST,3820897,"72,857.28"
Ministry of Justice,NOMS,20/12/2010,WIP - Acquisitions,Estates Capacity,WATES CONSTRUCTION LTD,3790049,"68,621.18"
Ministry of Justice,NOMS,20/12/2010,"New structural works, structural maintenance and equipment",TSS West Midlands Area,YORKSHIRE DIESEL POWER LTD,3787486,"55,624.50"
Ministry of Justice,NOMS,20/12/2010,Other - Acquisitions,Leeds,ACTIVE ENERGY LTD,3734457,"40,764.28"
Ministry of Justice,NOMS,20/12/2010,Other - Acquisitions,Northallerton,FALCON FOODSERVICE EQUIPMENT,3821061,"32,928.20"
Ministry of Justice,NOMS,20/12/2010,Contracted-out Escorts,Prisoner Escort & Custody Service (PECS),SERCO LTD,3787554,"-37,495.37"
Ministry of Justice,NOMS,20/12/2010,WIP - Acquisitions,Estates Capacity,WATES CONSTRUCTION LTD,DM68114,"-61,902.28"
Ministry of Justice,NOMS,20/12/2010,Contracted-out operation of prisons and detention centres,Bronzefield,ASHFORD PRISON SERVICES LIMITED,3810332,"-84,608.70"
Ministry of Justice,NOMS,21/12/2010,Contracted-out Electronic Monitoring,National Operations Group,G4S CARE & JUSTICE SERVICES LTD,3820551,"5,009,783.30"
Ministry of Justice,NOMS,21/12/2010,Contracted-out Escorts,Prisoner Escort & Custody Service (PECS),RELIANCE SECURE TASK MANAGEMENT,3809220,"1,991,747.42"
Ministry of Justice,NOMS,21/12/2010,Contracted-out Escorts,Prisoner Escort & Custody Service (PECS),G4S CARE & JUSTICE SERVICES LTD,3800334,"1,378,974.59"
Ministry of Justice,NOMS,21/12/2010,Contracted-out Escorts,Prisoner Escort & Custody Service (PECS),RELIANCE SECURE TASK MANAGEMENT,3809218,"1,047,964.65"
Ministry of Justice,NOMS,21/12/2010,Contracted-out Escorts,Prisoner Escort & Custody Service (PECS),G4S CARE & JUSTICE SERVICES LTD,3800332,"1,038,035.25"
Ministry of Justice,NOMS,21/12/2010,WIP - Acquisitions,Estates Capacity,KIER REGIONAL LTD,3820990,"816,625.00"
Ministry of Justice,NOMS,21/12/2010,WIP - Acquisitions,NOMIS Programme,STERIA LTD,3783041,"523,320.90"
Ministry of Justice,NOMS,21/12/2010,Contracted-out Computer Services,NOMIS Programme,STERIA LTD,3783041,"345,054.26"
Ministry of Justice,NOMS,21/12/2010,Contracted-out Escorts,Prisoner Escort & Custody Service (PECS),RELIANCE SECURE TASK MANAGEMENT,3809219,"257,313.66"
Ministry of Justice,NOMS,21/12/2010,Contracted-out Computer Services,NOMIS Programme,STERIA LTD,3782638,"120,613.29"
Ministry of Justice,NOMS,21/12/2010,"New structural works, structural maintenance and equipment",Full Sutton,POWERPERFECTOR PLC ,3814969,"80,201.98"
Ministry of Justice,NOMS,21/12/2010,"Prisoner Compensation over 5,000",Chief Operating Officers Office,TREASURY SOLICITORS,3821354,"46,000.00"
Ministry of Justice,NOMS,21/12/2010,Inter-Unit Charge (IUC),Brixton,CARTUS LIMITED,3821268,"40,000.00"
Ministry of Justice,NOMS,21/12/2010,Contracted-out Probation Trusts,Rehabilitation Services Group,ESSEX PROBATION TRUST,3819498,"32,977.00"
Ministry of Justice,NOMS,22/12/2010,Contracted-out Computer Services,Quantum,HP ENTERPRISE SERVICES UK LTD,3822377,"2,425,544.44"
Ministry of Justice,NOMS,22/12/2010,WIP - Acquisitions,Estates Capacity,KIER REGIONAL LTD,3822292,"886,302.43"
Ministry of Justice,NOMS,22/12/2010,Rates and Ground Rents,Dartmoor,DUCHY OF CORNWALL,3814776,"667,134.58"
Ministry of Justice,NOMS,22/12/2010,Contracted-out Computer Services,NOMIS Programme,HP ENTERPRISE SERVICES UK LTD,3821555,"310,191.76"
Ministry of Justice,NOMS,22/12/2010,Rates and Ground Rents,Estates Capacity,NOTTINGHAM CITY COUNCIL,3818990,"274,634.36"
Ministry of Justice,NOMS,22/12/2010,Contracted-out Other Services,Quantum,HP ENTERPRISE SERVICES UK LTD,3822377,"241,453.60"
Ministry of Justice,NOMS,22/12/2010,Contracted-out Other Services,Quantum,HP ENTERPRISE SERVICES UK LTD,3822327,"173,421.68"
Ministry of Justice,NOMS,22/12/2010,Contracted-out Other Services,Quantum,HP ENTERPRISE SERVICES UK LTD,3822333,"155,629.29"
Ministry of Justice,NOMS,22/12/2010,Intangibles - Additions,MOJ Shared Services NOMS Delivery,ORACLE CORPORATION U K LTD,3820974,"128,899.15"
Ministry of Justice,NOMS,22/12/2010,Contracted-out Other Services,National Operations Group,HOME GROUP LTD (STONHAM),3813794,"92,352.00"
Ministry of Justice,NOMS,22/12/2010,Contracted-out Computer Services,Quantum,HP ENTERPRISE SERVICES UK LTD,3803319,"69,186.84"
Ministry of Justice,NOMS,22/12/2010,Contracted-out Computer Services,Quantum,HP ENTERPRISE SERVICES UK LTD,3822374,"55,223.68"
Ministry of Justice,NOMS,22/12/2010,Contracted-out Computer Services,Quantum,HP ENTERPRISE SERVICES UK LTD,3822369,"51,954.90"
Ministry of Justice,NOMS,22/12/2010,Contracted-out Computer Services,Quantum,HP ENTERPRISE SERVICES UK LTD,3822358,"48,094.17"
Ministry of Justice,NOMS,22/12/2010,Travel - Non-Taxable,HOPS Payroll Charge,CARLSON WAGONLIT TRAVEL,3822311,"42,920.84"
Ministry of Justice,NOMS,22/12/2010,Contracted-out Computer Services,Quantum,HP ENTERPRISE SERVICES UK LTD,3822351,"38,852.00"
Ministry of Justice,NOMS,22/12/2010,In Cell TV Costs,Central Budgets,COMPUTACENTER (U K) LTD,3821554,"34,163.35"
Ministry of Justice,NOMS,22/12/2010,Contracted-out Computer Services,Quantum,HP ENTERPRISE SERVICES UK LTD,3822332,"33,826.56"
Ministry of Justice,NOMS,22/12/2010,WIP - Professional Fees,Estates Capacity,TURNER & TOWNSEND,3754583,"33,455.07"
Ministry of Justice,NOMS,22/12/2010,Contracted-out Other Services,Quantum,HP ENTERPRISE SERVICES UK LTD,3822321,"30,529.27"
Ministry of Justice,NOMS,22/12/2010,Contracted-out Other Services,Quantum,HP ENTERPRISE SERVICES UK LTD,3822343,"28,930.43"
Ministry of Justice,NOMS,22/12/2010,Inventory A/P Accrual,IW Cluster,INTERNATIONAL PLYWOOD PLC,3808627,"25,480.00"
Ministry of Justice,NOMS,24/12/2010,WIP - Acquisitions,Estates Capacity,CARILLION JM LIMITED,3807477,"119,292.43"
Ministry of Justice,NOMS,24/12/2010,Miscellaneous,IW Cluster,MCM CONSTRUCTION LTD,3798280,"116,929.66"
Ministry of Justice,NOMS,24/12/2010,Resource Grants / Grant-in-Aid,Business and Service Development Group,CO-OPERATIVE AND MUTUAL SOLUTIONS LIMITED,3824020,"100,000.00"
Ministry of Justice,NOMS,24/12/2010,WIP - Acquisitions,Estates Capacity,HENRY BOOT CONSTRUCTION (U K) LTD,3817383,"56,400.00"
Ministry of Justice,NOMS,24/12/2010,Contracted-out Catering Services,Holme House,ESS SUPPORT SERVICES WORLDWIDE,3805001,"34,219.89"
Ministry of Justice,NOMS,24/12/2010,Water and Sewage,Manchester,UNITED UTILITIES WATER PLC,3825050,"26,444.37"
Ministry of Justice,NOMS,29/12/2010,Contracted-out operation of prisons and detention centres,Forest Bank,AGECROFT PRISON MANAGEMENT LTD,3825267,"2,769,329.17"
Ministry of Justice,NOMS,29/12/2010,WIP - Acquisitions,NOMIS Programme,STERIA LTD,3794194,"510,919.38"
Ministry of Justice,NOMS,29/12/2010,WIP - Acquisitions,NOMIS Programme,STERIA LTD,3794193,"166,090.95"
Ministry of Justice,NOMS,30/12/2010,Contracted-out operation of prisons and detention centres,Doncaster,SERCO LTD,3831205,"1,885,442.19"
Ministry of Justice,NOMS,30/12/2010,Contracted-out Probation Trusts,Derbyshire Probation Trust,DERBYSHIRE PROBATION TRUST,3831917,"1,119,850.00"
Ministry of Justice,NOMS,30/12/2010,Contracted-out Probation Trusts,Northamptonshire Probation Trust,NORTHAMPTONSHIRE PROBATION TRUST,3823684,"763,083.00"
Ministry of Justice,NOMS,30/12/2010,Contracted-out Probation Trusts,Lincolnshire Probation Trust,LINCOLNSHIRE PROBATION TRUST,3830582,"748,566.00"
Ministry of Justice,NOMS,30/12/2010,Contracted-out Other Services,National Operations Group,HOME GROUP LTD (STONHAM),3813795,"688,368.00"
Ministry of Justice,NOMS,30/12/2010,Legal Representation,Chief Operating Officers Office,TREASURY SOLICITORS,3825417,"632,435.19"
Ministry of Justice,NOMS,30/12/2010,Intangibles - Additions,NOMS ICT,ORACLE CORPORATION U K LTD,3821850,"527,017.04"
Ministry of Justice,NOMS,30/12/2010,Legal Representation,Chief Operating Officers Office,TREASURY SOLICITORS,3825414,"330,381.69"
Ministry of Justice,NOMS,30/12/2010,Contracted-out Staff Mess,Wormwood Scrubs,CENTRAL LONDON COMMUNITY HEALTHCARE NHS TRUST,3827746,"200,000.00"
Ministry of Justice,NOMS,30/12/2010,Training and Further Education Courses,Learning and Development Group,NEWCASTLE COLLEGE,3815344,"196,527.96"
Ministry of Justice,NOMS,30/12/2010,Contracted-out operation of prisons and detention centres,Doncaster,SERCO LTD,3829721,"137,949.87"
Ministry of Justice,NOMS,30/12/2010,WIP - Acquisitions,Estates Capacity,INTERSERVE PROJECT SERVICES LTD,3816864,"127,503.95"
Ministry of Justice,NOMS,30/12/2010,WIP - Acquisitions,Estates Capacity,GALLIFORD TRY CONSTRUCTION LTD,3825103,"103,629.28"
Ministry of Justice,NOMS,30/12/2010,Legal Representation,MOJ Project & ATOS,SIMMONS & SIMMONS,3768659,"98,112.38"
Ministry of Justice,NOMS,30/12/2010,WIP - Professional Fees,Estates Capacity,FAITHFUL + GOULD,3806253,"75,998.98"
Ministry of Justice,NOMS,30/12/2010,Training and Further Education Courses,Learning and Development Group,UNIVERSITY OF HERTFORDSHIRE,3817125,"70,881.00"
Ministry of Justice,NOMS,30/12/2010,Drugs,Rochester,A A H PHARMACEUTICALS LTD,3825068,"67,483.95"
Ministry of Justice,NOMS,30/12/2010,WIP - Acquisitions,Estates Capacity,CARILLION JM LIMITED,3814793,"57,497.30"
Ministry of Justice,NOMS,30/12/2010,"Prisoner Compensation over 5,000",Chief Operating Officers Office,TREASURY SOLICITORS,3832333,"52,446.33"
Ministry of Justice,NOMS,30/12/2010,Payments to voluntary Organisations,East of England Regional NOMS Office,NACRO NCT (EAST ANGLIA),3827689,"46,927.52"
Ministry of Justice,NOMS,30/12/2010,Legal Representation,MOJ Project & ATOS,SIMMONS & SIMMONS,3751003,"41,961.73"
Ministry of Justice,NOMS,30/12/2010,WIP - Professional Fees,Estates Capacity,FAITHFUL + GOULD,3807696,"37,794.69"
Ministry of Justice,NOMS,30/12/2010,Contracted-out operation of prisons and detention centres,Forest Bank,AGECROFT PRISON MANAGEMENT LTD,3825305,"33,705.09"
Ministry of Justice,NOMS,30/12/2010,Contracted-out Resettlement Services,Business and Service Development Group,PARTNERS OF PRISONERS & FAMILIES SUPPORT GROUP,3642438,"31,535.84"
Ministry of Justice,NOMS,30/12/2010,General Maintenance Materials,Yorks & Humberside Estate Management,PROFESSIONAL FIRE SYSTEMS & PROJECTS,3804052,"31,472.52"
Ministry of Justice,NOMS,30/12/2010,"Staff Compensation over 5,000",Wandsworth,TREASURY SOLICITORS,3825422,"30,000.00"
Ministry of Justice,NOMS,30/12/2010,"Staff Compensation over 5,000",Chief Operating Officers Office,TREASURY SOLICITORS,3832336,"30,000.00"
Ministry of Justice,NOMS,30/12/2010,WIP - Professional Fees,Estates Capacity,WYG ENGINEERING LTD ,3777900,"28,212.26"
Ministry of Justice,NOMS,30/12/2010,General Maintenance Materials,Wales Prisons Estate Management Group (WPEMG),EAGERGALA LTD,3465648,"27,759.38"
Ministry of Justice,NOMS,30/12/2010,Secondments,NOMIS Programme,ESSEX PROBATION TRUST,3825045,"27,725.30"
Ministry of Justice,NOMS,30/12/2010,Counselling & Advisory Costs,Everthorpe,R A P T,3825427,"27,710.65"
Ministry of Justice,NOMS,30/12/2010,Contracted-out Resettlement Services,North East DOMS Office,DURHAM TEES VALLEY PROBATION TRUST,3826550,"27,500.00"
Ministry of Justice,NOMS,30/12/2010,WIP - Professional Fees,Estates Capacity,AEDAS ARCHITECTS LTD,3801151,"25,469.84"
Ministry of Justice,NOMS,30/12/2010,WIP - Professional Fees,Estates Capacity,AEDAS ARCHITECTS LTD,3828388,"-25,469.84"
Ministry of Justice,NOMS,31/12/2010,Contracted-out Probation Trusts,Dorset Probation Trust,DORSET PROBATION TRUST,3832112,"764,391.00"
Ministry of Justice,NOMS,31/12/2010,Prison Shop Cost of Sales,Chief Operating Officers Office,EXEL EUROPE1 LTD,3827977,"517,567.39"
Ministry of Justice,NOMS,31/12/2010,Contract IT Maintenance,NOMS ICT,HP ENTERPRISE SERVICES UK LTD,3827535,"297,328.08"
Ministry of Justice,NOMS,31/12/2010,Prison Shop Cost of Sales (No VAT),Chief Operating Officers Office,EXEL EUROPE1 LTD,3827977,"250,684.89"
Ministry of Justice,NOMS,31/12/2010,Rates and Ground Rents,Estates Capacity,NEWPORT CITY COUNCIL,3639384,"34,180.71"
Ministry of Justice,NOMS,31/12/2010,WIP - Acquisitions,Estates Capacity,ISG REGIONS LTD,3827487,"179,306.18"
Ministry of Justice,NOMS,31/12/2010,WIP - Acquisitions,Estates Capacity,WATES CONSTRUCTION LTD,3825687,"173,092.78"
Ministry of Justice,NOMS,31/12/2010,"New structural works, structural maintenance and equipment",Manchester,EMSC UK LTD,3823180,"169,855.65"
Ministry of Justice,NOMS,31/12/2010,WIP - Acquisitions,Estates Capacity,ISG REGIONS LTD,3827332,"152,486.80"
Ministry of Justice,NOMS,31/12/2010,WIP - Acquisitions,Estates Capacity,HENRY BOOT CONSTRUCTION (U K) LTD,3833117,"150,033.40"
Ministry of Justice,NOMS,31/12/2010,WIP - Acquisitions,Estates Capacity,MORRISON CONSTRUCTION SERVICES LTD,3680958,"143,822.54"
Ministry of Justice,NOMS,31/12/2010,WIP - Acquisitions,Estates Capacity,KIER REGIONAL LTD,3832109,"141,400.68"
Ministry of Justice,NOMS,31/12/2010,Contract IT Maintenance,MOJ Project & ATOS,HP ENTERPRISE SERVICES UK LTD,3832908,"129,988.47"
Ministry of Justice,NOMS,31/12/2010,Contract IT Maintenance,MoJ ICT,HP ENTERPRISE SERVICES UK LTD,3829296,"121,306.66"
Ministry of Justice,NOMS,31/12/2010,Counselling & Advisory Costs,ROM - Yorkshire & Humberside,LIFELINE PROJECT,3830727,"118,875.67"
Ministry of Justice,NOMS,31/12/2010,Resource Grants / Grant-in-Aid,Area Services,ADVANCE,3825086,"117,500.00"
Ministry of Justice,NOMS,31/12/2010,WIP - Acquisitions,Estates Capacity,KIER REGIONAL LTD,3832529,"111,821.23"
Ministry of Justice,NOMS,31/12/2010,Contract IT Maintenance,NOMS ICT,HP ENTERPRISE SERVICES UK LTD,3827534,"102,775.03"
Ministry of Justice,NOMS,31/12/2010,Subsistence,HOPS Payroll Charge,CALDER CONFERENCE,3825356,"84,624.93"
Ministry of Justice,NOMS,31/12/2010,Contract IT Maintenance,MoJ ICT,HP ENTERPRISE SERVICES UK LTD,3833328,"83,033.32"
Ministry of Justice,NOMS,31/12/2010,Resource Grants / Grant-in-Aid,ROM - South West,CLINKS,3829876,"80,000.00"
Ministry of Justice,NOMS,31/12/2010,WIP - Acquisitions,Estates Capacity,KIER REGIONAL LTD,3830816,"71,757.25"
Ministry of Justice,NOMS,31/12/2010,Training Materials,Offender Employment Skills & Services Group,BIRMINGHAM CITY UNIVERSITY,3822229,"62,300.00"
Ministry of Justice,NOMS,31/12/2010,WIP - Acquisitions,Estates Capacity,KIER REGIONAL LTD,3831584,"54,092.30"
Ministry of Justice,NOMS,31/12/2010,Contract IT Maintenance,MoJ ICT,HP ENTERPRISE SERVICES UK LTD,3829295,"53,768.43"
Ministry of Justice,NOMS,31/12/2010,WIP - Acquisitions,Estates Capacity,KIER REGIONAL LTD,3832527,"49,850.55"
Ministry of Justice,NOMS,31/12/2010,Contract IT Maintenance,MoJ ICT,HP ENTERPRISE SERVICES UK LTD,3829294,"48,886.11"
Ministry of Justice,NOMS,31/12/2010,WIP - Professional Fees,Estates Capacity,AEDAS ARCHITECTS LTD,3828350,"48,266.90"
Ministry of Justice,NOMS,31/12/2010,WIP - Acquisitions,Estates Capacity,INTERSERVE PROJECT SERVICES LTD,3831348,"46,834.33"
Ministry of Justice,NOMS,31/12/2010,WIP - Professional Fees,Estates Capacity,ATKINS LTD,3823439,"46,280.10"
Ministry of Justice,NOMS,31/12/2010,Contract IT Maintenance,MoJ ICT,TRIBAL CONSULTING,3830909,"42,375.00"
Ministry of Justice,NOMS,31/12/2010,Clothing,Offender Employment Skills & Services Group,JIANGSU SAINTY CORP LTD,3825071,"42,294.00"
Ministry of Justice,NOMS,31/12/2010,WIP - Professional Fees,Estates Capacity,JACOBS ENGINEERING UK,3829725,"41,770.30"
Ministry of Justice,NOMS,31/12/2010,Training and Further Education Courses,Learning and Development Group,UNIVERSITY OF PORTSMOUTH,3829497,"38,896.62"
Ministry of Justice,NOMS,31/12/2010,Contracted-out Probation Trusts,Wellingborough,NORTHAMPTONSHIRE PROBATION TRUST,3833391,"38,621.03"
Ministry of Justice,NOMS,31/12/2010,Contracted-out Probation Trusts,Whatton,NOTTINGHAMSHIRE PROBATION TRUST,3832086,"38,258.90"
Ministry of Justice,NOMS,31/12/2010,Gas,Highpoint,CORONA ENERGY RETAIL 4 LTD,3832267,"36,840.75"
Ministry of Justice,NOMS,31/12/2010,Counselling & Advisory Costs,Styal,LIFELINE PROJECT,3831632,"36,247.54"
Ministry of Justice,NOMS,31/12/2010,Gas,Feltham,CORONA ENERGY RETAIL 4 LTD,3832378,"36,146.61"
Ministry of Justice,NOMS,31/12/2010,Counselling & Advisory Costs,Wormwood Scrubs,R A P T,3779378,"35,133.40"
Ministry of Justice,NOMS,31/12/2010,Gas,Nottingham,CORONA ENERGY RETAIL 4 LTD,3832303,"33,680.98"
Ministry of Justice,NOMS,31/12/2010,Gas,Manchester,CORONA ENERGY RETAIL 4 LTD,3832332,"33,475.03"
Ministry of Justice,NOMS,31/12/2010,Gas,Glen Parva,CORONA ENERGY RETAIL 4 LTD,3832211,"33,327.22"
Ministry of Justice,NOMS,31/12/2010,Gas,Holme House,CORONA ENERGY RETAIL 4 LTD,3833735,"33,280.36"
Ministry of Justice,NOMS,31/12/2010,Water and Sewage,Preston,UNITED UTILITIES WATER PLC,3833832,"32,242.68"
Ministry of Justice,NOMS,31/12/2010,Gas,Channings Wood,CORONA ENERGY RETAIL 4 LTD,3832307,"31,812.90"
Ministry of Justice,NOMS,31/12/2010,Gas,Littlehey,CORONA ENERGY RETAIL 4 LTD,3832317,"31,800.06"
Ministry of Justice,NOMS,31/12/2010,Gas,Bullingdon,CORONA ENERGY RETAIL 4 LTD,3832247,"31,524.51"
Ministry of Justice,NOMS,31/12/2010,Gas,Frankland,CORONA ENERGY RETAIL 4 LTD,3832342,"31,221.94"
Ministry of Justice,NOMS,31/12/2010,Travel - Non-Taxable,HOPS Payroll Charge,CARLSON WAGONLIT TRAVEL,3833700,"30,987.69"
Ministry of Justice,NOMS,31/12/2010,"Books, Stationery & IT Consumables",Offender Employment Skills & Services Group,BURLINGTON UNIFORMS LTD,3830736,"30,385.51"
Ministry of Justice,NOMS,31/12/2010,Gas,Ranby,CORONA ENERGY RETAIL 4 LTD,3832196,"29,878.46"
Ministry of Justice,NOMS,31/12/2010,Contracted-out Education,Dover,THE MANCHESTER COLLEGE,3832145,"29,722.35"
Ministry of Justice,NOMS,31/12/2010,Gas,Birmingham,CORONA ENERGY RETAIL 4 LTD,3832167,"29,562.00"
Ministry of Justice,NOMS,31/12/2010,Counselling & Advisory Costs,Liverpool,LIFELINE PROJECT,3831890,"29,219.99"
Ministry of Justice,NOMS,31/12/2010,Gas,Hewell,CORONA ENERGY RETAIL 4 LTD,3832172,"29,211.65"
Ministry of Justice,NOMS,31/12/2010,Gas,Belmarsh,CORONA ENERGY RETAIL 4 LTD,3832226,"29,119.10"
Ministry of Justice,NOMS,31/12/2010,Other - Acquisitions,Bullingdon,TURNEY P A LTD,3833887,"28,807.48"
Ministry of Justice,NOMS,31/12/2010,WIP - Acquisitions,Estates Capacity,MORRISON CONSTRUCTION SERVICES LTD,3832794,"28,750.00"
Ministry of Justice,NOMS,31/12/2010,Gas,Wandsworth,CORONA ENERGY RETAIL 4 LTD,3832383,"28,447.40"
Ministry of Justice,NOMS,31/12/2010,Gas,Verne (The),CORONA ENERGY RETAIL 4 LTD,3832288,"28,406.00"
Ministry of Justice,NOMS,31/12/2010,Gas,Haverigg,CORONA ENERGY RETAIL 4 LTD,3833816,"28,019.90"
Ministry of Justice,NOMS,31/12/2010,Gas,Featherstone,CORONA ENERGY RETAIL 4 LTD,3832389,"28,011.81"
Ministry of Justice,NOMS,31/12/2010,Electricity,Liverpool,CORONA ENERGY RETAIL 4 LTD,3832219,"27,763.45"
Ministry of Justice,NOMS,31/12/2010,Gas,Woodhill,CORONA ENERGY RETAIL 4 LTD,3832217,"27,688.04"
Ministry of Justice,NOMS,31/12/2010,Contracted-out Probation Boards,Onley,NORTHAMPTONSHIRE PROBATION TRUST,3833390,"27,665.67"
Ministry of Justice,NOMS,31/12/2010,Gas,Acklington,CORONA ENERGY RETAIL 4 LTD,3832177,"27,387.18"
Ministry of Justice,NOMS,31/12/2010,Gas,Highdown,CORONA ENERGY RETAIL 4 LTD,3832279,"26,881.20"
Ministry of Justice,NOMS,31/12/2010,Gas,Stoke Heath,CORONA ENERGY RETAIL 4 LTD,3832235,"26,207.47"
Ministry of Justice,NOMS,31/12/2010,Gas,Sheppey Clustered Services,CORONA ENERGY RETAIL 4 LTD,3832213,"26,195.53"
Ministry of Justice,NOMS,31/12/2010,"New structural works, structural maintenance and equipment",Hull,SANGWIN LIMITED,3824287,"26,072.25"
Ministry of Justice,NOMS,31/12/2010,Gas,Mount (The),CORONA ENERGY RETAIL 4 LTD,3833763,"25,728.51"
Ministry of Justice,NOMS,31/12/2010,Gas,Long Lartin,CORONA ENERGY RETAIL 4 LTD,3832314,"25,534.56"
Ministry of Justice,NOMS,31/12/2010,Gas,Sheppey Clustered Services,CORONA ENERGY RETAIL 4 LTD,3832253,"25,281.55"
Ministry of Justice,NOMS,31/12/2010,WIP - Acquisitions,Estates Capacity,MORRISON CONSTRUCTION SERVICES LTD,3711497,"-143,822.54"
